bitfinex/quotes_ETHUSD_20260228
["timestamp","ask_amount","ask_price","bid_price","bid_amount"]
[1772312578284,4.90385863,1958.5,1957.8,2.69792741]
[1772312578481,4.90376022,1958.7,1957.8,5.38146202]
[1772312578697,4.90376022,1958.7,1957.1,1.421]
[1772312578698,3.62737153,1958.3,1957.1,1.421]
[1772312578885,3.62737153,1958.1,1957.1,1.421]
[1772312579692,3.62737153,1958.0,1957.1,1.421]
[1772312579877,3.62737153,1958.1,1957.1,1.421]
[1772312580075,3.62737153,1958.0,1957.1,1.421]
[1772312580386,3.62737153,1958.0,1957.2,3.96086957]
[1772312581317,3.62737153,1957.9,1957.2,3.96086957]
[1772312581892,3.62737153,1957.8,1957.1,1.421]
[1772312582090,3.62737153,1957.5,1956.9,1.38]
[1772312582293,4.90464123,1957.3,1956.9,1.24714688]
[1772312582490,6.66405588,1957.2,1956.6,2.69872141]
[1772312582788,3.62737153,1957.3,1956.6,5.38225602]
[1772312582987,3.62737153,1957.3,1956.6,2.69872141]
[1772312583682,3.62737153,1957.2,1956.6,2.6987262]
[1772312584078,6.42763858,1957.3,1956.6,2.6987262]
[1772312584278,4.90476768,1957.2,1956.6,2.69872055]
[1772312584896,4.90476768,1957.2,1956.6,1.421]
[1772312585215,4.90476768,1957.2,1956.6,2.69872256]
[1772312585397,3.62737153,1957.1,1956.6,2.69872256]
[1772312586112,4.0773235,1957.7,1956.6,2.69872256]
[1772312586294,4.0773235,1957.7,1956.6,5.38225717]
[1772312586702,2.80026705,1957.6,1956.6,2.69872256]
[1772312587101,2.80026705,1957.6,1956.6,1.421]
[1772312588122,5.23751357,1957.7,1956.0,2.69906376]
[1772312588123,2.80026705,1957.0,1956.0,2.69906376]
[1772312588293,1.27753078,1956.9,1956.0,2.69906376]
[1772312588493,2.80026705,1956.7,1955.7,1.27831466]
[1772312588699,2.80026705,1956.7,1955.4,1.421]
[1772312588919,2.80026705,1956.6,1955.5,1.27844541]
[1772312589090,2.80026705,1956.0,1955.2,0.1575057]
[1772312589291,2.80026705,1955.9,1955.2,0.1575057]
[1772312589727,2.80026705,1955.7,1954.8,1.27886385]
[1772312590039,2.80026705,1955.9,1954.8,2.56145712]
[1772312590193,2.80026705,1955.9,1954.9,1.421]
[1772312590397,1.2782493,1955.8,1955.0,1.27877237]
[1772312590595,1.2782493,1955.8,1954.4,2.70016496]
[1772312590596,2.80026705,1955.5,1954.4,2.70016496]
[1772312590830,2.80026705,1955.4,1954.4,2.70016496]
[1772312591005,2.80026705,1955.8,1954.8,2.56145712]
[1772312591321,2.80026705,1955.8,1954.9,1.422]
[1772312591526,2.80026705,1955.8,1955.0,1.422]
[1772312591898,2.80026705,1955.8,1954.7,1.332]
[1772312592504,2.80026705,1955.8,1954.8,1.27890321]
[1772312592738,4.07853429,1955.8,1954.8,1.27890321]
[1772312592930,1.27805372,1956.1,1954.8,1.27890321]
[1772312593101,4.07832077,1956.1,1954.8,1.27890321]
[1772312593620,2.80026705,1956.0,1954.8,1.27890321]
[1772312594526,4.078451,1955.9,1954.8,1.27890321]
[1772312594704,2.80026705,1955.8,1954.8,1.27890321]
[1772312595357,2.80026705,1955.8,1954.7,2.70193278]
[1772312595511,2.80026705,1955.6,1954.7,2.70196469]
[1772312595707,2.80026705,1955.4,1954.7,1.423]
[1772312595937,2.80026705,1955.4,1954.7,1.27895927]
[1772312596565,2.80026705,1955.4,1954.5,5.11587455]
[1772312596847,4.01688349,1955.2,1953.7,3.74553514]
[1772312597048,4.01688349,1955.2,1953.9,3.74553514]
[1772312598232,4.01688349,1955.2,1953.6,5.16953514]
[1772312598538,5.29559046,1955.1,1953.7,5.02515841]
[1772312598836,4.01688349,1955.0,1953.7,1.27962327]
[1772312599135,4.01688349,1954.9,1953.7,1.27962327]
[1772312600631,4.01688349,1954.7,1953.7,1.27962327]
[1772312600925,4.01688349,1954.7,1952.8,7.75219759]
[1772312600926,0.73918114,1953.5,1952.1,3.74553514]
[1772312601132,6.50020831,1954.4,1952.6,3.74553514]
[1772312601332,4.01688349,1954.3,1952.7,5.17553514]
[1772312601818,4.01688349,1954.3,1952.2,6.3188657]
[1772312602023,4.01688349,1953.9,1952.3,1.374]
[1772312602622,2.81828485,1954.2,1951.8,1.28086894]
[1772312602623,4.01688349,1953.3,1951.8,1.28086894]
[1772312602821,4.01688349,1953.3,1951.8,5.02640408]
[1772312603023,4.01688349,1953.3,1952.8,0.001]
[1772312603224,0.065536,1953.8,1951.8,5.02640408]
[1772312603225,4.01688349,1954.2,1952.6,1.432]
[1772312603546,4.01688349,1954.2,1952.1,5.14022317]
[1772312603547,4.01688349,1954.2,1952.7,0.95]
[1772312603843,4.01688349,1954.2,1952.8,0.825]
[1772312604724,4.01688349,1954.0,1952.9,1.28014747]
[1772312606655,4.01688349,1953.9,1952.9,1.28014747]
[1772312606829,4.01688349,1953.9,1953.0,1.433]
[1772312607457,4.01688349,1954.3,1953.0,1.433]
[1772312608260,5.29613606,1954.3,1953.0,1.433]
[1772312608466,4.01688349,1954.3,1953.0,1.433]
[1772312608667,5.29612311,1954.3,1953.1,1.28001638]
[1772312608957,4.01688349,1954.3,1953.1,1.28001638]
[1772312609163,4.01688349,1954.7,1953.2,3.74553514]
[1772312609362,4.01688349,1954.7,1953.1,1.28001638]
[1772312609363,4.01688349,1954.6,1953.1,1.28001638]
[1772312609666,4.01688349,1954.6,1953.2,3.74553514]
[1772312610237,1.27887795,1954.9,1953.2,3.74553514]
[1772312610566,4.01688349,1955.0,1953.6,3.74553514]
[1772312610752,0.002,1955.1,1953.8,3.74553514]
[1772312610955,4.01688349,1955.0,1953.1,8.96363705]
[1772312611160,4.01688349,1955.0,1953.5,3.74553514]
[1772312611459,1.28070707,1955.1,1954.0,2.56690213]
[1772312611460,0.002,1955.1,1954.0,2.56690213]
[1772312611659,0.002,1955.1,1954.1,1.432]
[1772312611876,7.68019639,1955.7,1954.1,1.432]
[1772312611877,4.01688349,1955.9,1954.7,2.56690213]
[1772312612033,4.01688349,1955.8,1954.4,3.74553514]
[1772312612234,4.01688349,1955.8,1954.5,1.431]
[1772312612434,4.01688349,1955.6,1954.5,1.431]
[1772312612747,4.01688349,1955.6,1954.6,1.27903407]
[1772312612936,5.29527033,1955.6,1954.6,1.27903407]
[1772312613138,5.29527621,1955.6,1954.6,1.27903407]
[1772312613345,4.01688349,1955.6,1954.6,1.27903407]
[1772312613557,1.27835968,1955.7,1954.6,1.27903407]
[1772312614272,1.27835968,1955.7,1954.2,1.432]
[1772312614273,4.01688349,1955.5,1954.2,1.432]
[1772312614766,4.01688349,1955.3,1954.2,2.71125029]
[1772312615839,4.01688349,1955.7,1954.3,5.57829963]
[1772312616267,4.01688349,1955.6,1954.2,2.71125029]
[1772312616767,4.01688349,1955.6,1954.7,0.001]
[1772312616768,1.27844541,1955.5,1954.7,0.001]
[1772312616974,4.01688349,1955.4,1954.7,0.001]
[1772312617373,1.28044541,1955.5,1954.8,1.391]
[1772312617374,0.002,1955.5,1954.8,1.391]
[1772312617580,4.01888349,1955.5,1954.8,1.391]
[1772312618161,3.96688349,1955.3,1954.7,0.001]
[1772312619068,5.24548627,1955.3,1954.7,0.001]
[1772312619267,3.96688349,1955.3,1954.7,0.001]
[1772312619469,5.24546686,1955.3,1954.7,0.001]
[1772312619875,4.01688349,1955.2,1954.7,0.001]
[1772312620250,4.01688349,1955.2,1954.2,2.71028252]
[1772312620474,4.01688349,1955.2,1954.2,1.27928252]
[1772312620687,4.01688349,1955.2,1953.8,5.11799286]
[1772312620688,4.01688349,1955.2,1953.9,1.429]
[1772312621071,4.01688349,1955.0,1954.0,1.27942681]
[1772312621862,5.29544213,1955.4,1954.0,5.02496195]
[1772312622597,5.29544213,1955.4,1954.1,3.74553514]
[1772312623087,5.29544213,1955.4,1954.2,1.27929587]
[1772312623463,4.01688349,1955.2,1953.1,5.02555152]
[1772312623795,4.01688349,1954.8,1953.2,5.17453514]
[1772312624476,4.01688349,1954.8,1953.3,3.73548102]
[1772312625080,3.86926445,1954.6,1953.2,2.70892708]
[1772312625285,3.86926445,1954.4,1953.2,1.429]
[1772312625483,3.86926445,1954.2,1953.2,1.429]
[1772312626400,3.86683067,1954.1,1953.2,1.429]
[1772312626589,3.86683067,1953.7,1951.2,1.28716528]
[1772312626765,0.18685624,1953.1,1951.7,1.7739749]
[1772312626964,3.86683067,1952.9,1951.7,1.7739749]
[1772312627165,5.14698311,1952.9,1951.7,1.7739749]
[1772312627471,3.86683067,1952.8,1951.7,1.7739749]
[1772312628789,1.28005582,1953.1,1951.7,1.7739749]
[1772312628995,1.28005582,1953.1,1951.7,5.70348889]
[1772312629392,5.14682684,1953.2,1951.8,3.92951399]
[1772312629712,3.86683067,1953.6,1952.0,3.92951399]
[1772312630502,3.86683067,1953.6,1952.3,3.92951399]
[1772312630705,3.86683067,1953.6,1952.4,1.331]
[1772312631073,5.14656147,1953.6,1952.5,1.28040973]
[1772312631810,5.14653789,1953.6,1952.5,1.28040973]
[1772312632804,1.27970722,1953.6,1952.5,5.20992372]
[1772312633008,3.86683067,1953.9,1952.5,5.20992372]
[1772312633206,1.27955778,1953.8,1952.5,5.20992372]
[1772312633505,1.27955778,1953.8,1952.6,1.83638518]
[1772312633710,5.14635632,1953.9,1952.6,1.83638518]
[1772312634312,5.14635632,1953.9,1952.9,1.83638518]
[1772312634313,3.86683067,1953.9,1952.9,1.83638518]
[1772312634611,2.72918167,1954.2,1953.2,1.83638518]
[1772312634825,5.14610732,1954.3,1953.3,1.431]
[1772312635124,5.14606882,1954.3,1953.4,1.2798198]
[1772312635526,3.86683067,1954.2,1953.4,1.2798198]
[1772312635928,3.86683067,1954.2,1953.3,2.71084059]
[1772312636235,3.86683067,1954.0,1953.3,2.71087367]
[1772312636647,3.86683067,1954.0,1953.3,2.71088161]
[1772312636821,5.14606882,1954.3,1953.3,2.71088161]
[1772312637352,3.86683067,1953.1,1951.2,8.45176105]
[1772312637546,3.86683067,1952.6,1951.2,8.45176105]
[1772312637723,3.86683067,1952.6,1951.4,1.83638518]
[1772312637918,3.86683067,1953.0,1951.7,1.83638518]
[1772312638110,3.86683067,1953.0,1951.7,5.15476465]
[1772312639240,1.28014747,1952.9,1951.8,1.28086894]
[1772312639557,8.98550055,1953.7,1952.5,1.83638518]
[1772312639711,8.98550055,1953.7,1952.6,1.431]
[1772312640236,3.86683067,1953.4,1952.1,4.78231125]
[1772312640415,5.70321585,1953.2,1951.8,1.28086894]
[1772312640621,5.70321585,1953.6,1952.2,1.83638518]
[1772312641245,5.70321585,1953.6,1951.9,4.91826762]
[1772312641246,1.2798198,1953.4,1952.0,1.2807377]
[1772312642938,1.2798198,1953.4,1952.1,4.75567559]
[1772312643333,1.2798198,1953.4,1952.2,1.28060649]
[1772312644141,1.2798198,1953.4,1951.7,10.0133601]
[1772312644142,3.86683067,1953.1,1951.7,10.0133601]
[1772312645379,1.2798198,1953.4,1952.0,1.2807377]
[1772312645380,5.14665047,1953.4,1952.0,1.2807377]
[1772312645529,3.86683067,1953.3,1952.0,1.2807377]
[1772312645944,3.86683067,1953.3,1952.0,4.72261152]
[1772312646974,0.065536,1953.9,1952.5,3.4330234]
[1772312647271,0.065536,1953.9,1952.6,1.432]
[1772312647272,3.86683067,1953.7,1952.6,1.432]
[1772312647434,0.002,1953.3,1952.7,1.28027858]
[1772312647935,0.002,1953.3,1952.6,2.7122953]
[1772312648536,5.14651944,1953.6,1952.6,2.7122953]
[1772312648761,3.86683067,1953.6,1952.6,2.7122953]
[1772312649571,1.27975428,1953.5,1952.6,2.7122953]
[1772312649865,3.86683067,1953.4,1952.6,1.432]
[1772312650067,3.86683067,1953.4,1952.6,2.71233007]
[1772312650365,3.86683067,1953.4,1952.6,1.432]
[1772312650589,3.86683067,1953.4,1952.6,2.71234272]
[1772312650774,3.86683067,1953.4,1952.6,1.432]
[1772312651159,3.86683067,1953.3,1952.2,1.431]
[1772312651560,3.86683067,1953.1,1952.2,1.431]
[1772312652086,3.86683067,1953.1,1952.1,1.28062634]
[1772312652480,3.86683067,1953.1,1951.8,1.431]
[1772312652661,3.86683067,1952.8,1951.8,1.431]
[1772312652867,3.86683067,1952.8,1951.8,2.71184735]
[1772312653683,3.86683067,1952.7,1951.8,2.71184735]
[1772312653884,3.86683067,1953.1,1951.8,2.71184735]
[1772312654081,3.86683067,1953.1,1951.8,6.20630827]
[1772312654258,3.86683067,1953.1,1951.9,3.49446092]
[1772312654667,1.27985636,1953.4,1951.9,3.49446092]
[1772312654872,5.14668703,1953.4,1951.9,3.49446092]
[1772312655592,3.86683067,1953.4,1952.0,5.31355096]
[1772312655889,3.86683067,1953.4,1952.1,1.28067209]
[1772312656575,4.1049817,1953.3,1952.2,1.428]
[1772312658070,4.1049817,1953.3,1952.3,1.2805409]
[1772312658467,5.384878,1953.3,1952.3,1.2805409]
[1772312658780,4.1049817,1953.3,1952.3,1.2805409]
[1772312661180,1.27980563,1953.5,1952.3,1.2805409]
[1772312661379,0.002,1953.3,1952.3,1.2805409]
[1772312661578,0.002,1953.3,1952.3,4.70406458]
[1772312663304,0.002,1953.3,1952.4,3.41432565]
[1772312663605,1.27947354,1954.0,1952.8,5.24008229]
[1772312663778,4.1049817,1953.9,1952.9,1.43]
[1772312663973,5.11692242,1954.3,1953.0,5.24008229]
[1772312663974,5.38424177,1954.3,1953.0,5.24008229]
[1772312664174,5.38424177,1954.3,1952.9,1.43]
[1772312664175,4.1049817,1954.1,1952.9,1.43]
[1772312664502,4.1049817,1954.4,1953.2,1.83694289]
[1772312664699,4.1049817,1954.4,1953.0,3.4031394]
[1772312664700,7.221155,1954.3,1953.4,1.2798198]
[1772312665104,4.1049817,1954.3,1953.4,1.2798198]
[1772312665406,1.83694289,1954.2,1953.4,1.43]
[1772312666608,1.27942681,1954.0,1953.4,1.43]
[1772312666816,4.1049817,1954.0,1953.4,2.70981497]
[1772312671920,1.27927125,1954.3,1953.4,2.70981497]
[1772312672288,5.3841911,1954.4,1953.4,2.70981497]
[1772312672488,4.1049817,1954.3,1953.4,2.70981497]
[1772312673125,5.38425697,1954.3,1953.4,2.70981497]
[1772312674919,4.1049817,1954.3,1953.4,2.70981497]
[1772312675115,1.2791414,1954.5,1953.4,6.01218754]
[1772312675403,5.3841231,1954.5,1953.4,6.01218754]
[1772312675816,0.065536,1955.2,1953.4,6.01218754]
[1772312675817,5.38386978,1954.9,1953.6,3.29126264]
[1772312676108,4.1049817,1954.8,1953.6,3.29126264]
[1772312676318,0.002,1954.3,1953.6,3.29126264]
[1772312677204,0.002,1954.3,1953.7,4.56181221]
[1772312677407,0.002,1954.3,1953.8,1.426]
[1772312677631,0.002,1954.3,1953.8,4.6990626]
[1772312678132,4.1049817,1955.1,1953.9,3.2730626]
[1772312678302,4.1049817,1955.1,1954.1,5.84284111]
[1772312678501,5.38353096,1955.4,1954.2,4.68994926]
[1772312678907,5.38349528,1955.4,1954.3,3.26394926]
[1772312679105,5.38349528,1955.4,1954.4,1.27916496]
[1772312679347,4.1049817,1955.4,1954.4,4.54311422]
[1772312679512,5.38350322,1955.4,1954.4,4.54311422]
[1772312679943,4.1049817,1955.4,1954.4,4.54311422]
[1772312681712,5.38349497,1955.4,1954.4,4.54311422]
[1772312681912,4.1049817,1955.4,1954.4,4.54311422]
[1772312683042,4.1049817,1955.4,1954.5,1.428]
[1772312683436,4.1049817,1955.3,1954.6,1.27903407]
[1772312685409,5.38360316,1955.3,1954.7,1.427]
[1772312685738,3.84582072,1955.2,1954.5,1.427]
[1772312687407,5.2713041,1955.1,1954.5,2.70605665]
[1772312687934,0.5,1955.0,1954.5,2.70605665]
[1772312689036,4.49259713,1955.0,1954.5,2.70605665]
[1772312691136,3.99459713,1954.9,1954.5,2.70605665]
[1772312692116,0.002,1954.9,1954.5,2.70605665]
[1772312698551,3.99459713,1954.9,1954.6,1.429]
[1772312698783,3.99459713,1955.5,1954.6,1.429]
[1772312699060,3.99259713,1955.4,1954.6,1.429]
[1772312699847,3.99259713,1955.4,1954.7,1.27896863]
[1772312700348,3.99259713,1956.4,1955.3,8.76909311]
[1772312700537,3.99259713,1956.7,1955.9,2.56977851]
[1772312700716,5.27025961,1956.7,1956.0,1.434]
[1772312700922,3.99259713,1956.7,1956.0,1.434]
[1772312701117,5.27010582,1957.0,1956.0,1.434]
[1772312701344,3.99259713,1956.9,1956.0,1.434]
[1772312701549,3.99259713,1956.8,1955.8,1.433]
[1772312701857,3.99259713,1956.7,1955.8,1.433]
[1772312702059,3.99259713,1956.7,1954.6,3.62953609]
[1772312702060,3.99259713,1955.9,1954.6,3.62953609]
[1772312702348,3.99259713,1955.6,1954.6,0.826]
[1772312703549,3.99259713,1955.3,1954.1,1.27936134]
[1772312703725,3.99259713,1955.1,1954.1,1.27936134]
[1772312704126,1.27877237,1955.0,1954.1,1.27936134]
[1772312704724,5.27130504,1955.1,1954.1,4.90889743]
[1772312705050,5.27130504,1955.1,1954.1,1.27936134]
[1772312705218,5.27111562,1955.4,1954.4,3.63053609]
[1772312705418,3.99259713,1955.3,1954.5,1.433]
[1772312706448,1.27864157,1955.2,1954.5,2.7120715]
[1772312706764,0.002,1955.5,1954.7,2.56977851]
[1772312706926,3.99259713,1955.4,1954.5,1.2790715]
[1772312707119,3.99259713,1955.4,1954.5,1.432]
[1772312708446,3.99259713,1955.3,1954.6,1.27903407]
[1772312708630,1.28048594,1955.5,1954.6,1.27903407]
[1772312708831,1.28045471,1955.5,1954.6,1.27903407]
[1772312709039,3.99259713,1955.4,1954.6,1.27903407]
[1772312710350,3.99259713,1955.4,1954.4,0.001]
[1772312710570,3.99259713,1954.7,1954.1,0.001]
[1772312710770,3.99259713,1954.7,1953.7,0.826]
[1772312710771,3.99259713,1954.6,1953.7,0.826]
[1772312712280,5.24168172,1954.8,1953.4,0.001]
[1772312712281,3.99259713,1954.4,1953.4,0.001]
[1772312712662,3.99259713,1954.1,1953.4,0.001]
[1772312713549,1.392,1954.3,1953.4,0.001]
[1772312713755,3.99259713,1954.4,1953.4,3.63053609]
[1772312713950,1.27880542,1955.0,1953.8,3.62953609]
[1772312714176,3.99259713,1954.8,1953.5,3.62953609]
[1772312714345,3.99259713,1954.2,1953.4,0.001]
[1772312714668,5.27195847,1954.1,1953.4,0.001]
[1772312716249,3.99259713,1954.0,1953.4,0.001]
[1772312716775,3.76040237,1954.2,1953.4,0.001]
[1772312717070,5.03974204,1954.2,1953.4,0.001]
[1772312717580,3.76040237,1954.2,1953.4,0.001]
[1772312718183,3.76040237,1954.7,1953.4,0.001]
[1772312718398,3.76040237,1954.5,1953.4,0.001]
[1772312718569,5.15540237,1954.5,1953.4,3.57857065]
[1772312719011,3.76040237,1954.3,1953.5,1.27975428]
[1772312720107,3.76040237,1954.3,1953.5,0.001]
[1772312720305,3.76040237,1954.3,1953.4,0.001]
[1772312720919,3.76040237,1954.0,1953.4,0.001]
[1772312721073,3.76040237,1953.5,1952.4,0.001]
[1772312721274,3.76040237,1953.3,1952.4,0.001]
[1772312721808,3.76040237,1953.2,1952.4,0.001]
[1772312721988,3.76040237,1953.2,1952.4,1.28142718]
[1772312722306,3.76040237,1953.2,1952.4,0.001]
[1772312722517,3.76040237,1953.0,1952.4,0.001]
[1772312722675,3.76040237,1953.0,1951.8,1.28083254]
[1772312722875,1.28014747,1952.9,1951.7,5.12365597]
[1772312723112,3.76040237,1952.7,1951.7,5.12365597]
[1772312723277,3.76040237,1953.0,1952.1,2.56977851]
[1772312723481,3.76040237,1953.0,1951.9,3.57757065]
[1772312723710,3.76040237,1953.0,1951.8,3.99577851]
[1772312723904,3.76040237,1953.0,1951.9,3.57757065]
[1772312724202,3.76040237,1953.0,1952.1,2.56977851]
[1772312724404,3.76040237,1953.0,1951.8,2.56977851]
[1772312724605,3.76040237,1953.0,1951.9,1.428]
[1772312724907,5.04053029,1953.0,1952.0,1.2807377]
[1772312725093,3.76040237,1953.0,1952.0,4.85830835]
[1772312725478,0.5,1953.1,1952.0,4.85830835]
[1772312725696,0.5,1953.1,1952.1,2.56977851]
[1772312725697,1.78002478,1953.1,1952.1,2.56977851]
[1772312725896,5.54042715,1953.1,1952.1,2.56977851]
[1772312726100,4.26040237,1953.1,1952.1,6.14734916]
[1772312726987,4.26040237,1953.1,1952.2,1.28060649]
[1772312727913,5.54041932,1953.1,1952.2,1.28060649]
[1772312728081,3.76040237,1953.0,1952.0,1.2807377]
[1772312728281,3.76040237,1953.0,1951.9,1.428]
[1772312728282,3.76040237,1952.8,1951.9,1.428]
[1772312729698,3.76040237,1952.6,1951.9,2.70879214]
[1772312730913,1.28018213,1952.9,1951.9,2.70879214]
[1772312731116,3.76040237,1952.9,1951.9,2.70879214]
[1772312732106,5.04055568,1952.9,1951.9,2.70879214]
[1772312732800,5.04055246,1952.9,1951.9,2.70879214]
[1772312733001,3.76040237,1952.9,1951.9,6.28636279]
[1772312733212,5.54046265,1953.1,1952.0,6.14834916]
[1772312733920,5.54046265,1953.1,1952.1,1.28067209]
[1772312734302,3.76040237,1953.0,1952.0,1.28168789]
[1772312736137,3.76040237,1953.0,1952.0,0.001]
[1772312736138,3.76040237,1952.9,1952.0,0.001]
[1772312736503,3.76040237,1952.9,1952.0,1.83920629]
[1772312738040,5.04056149,1952.9,1952.1,1.28067209]
[1772312738410,3.76040237,1952.8,1952.1,1.28067209]
[1772312738799,3.76040237,1952.8,1952.0,0.001]
[1772312739037,3.76040237,1952.6,1952.0,0.001]
[1772312739738,3.76040237,1952.6,1951.7,1.429]
[1772312740236,3.76040237,1952.4,1951.7,1.429]
[1772312740400,3.76040237,1952.4,1951.5,1.28105652]
[1772312740601,3.76040237,1952.2,1951.4,1.28108641]
[1772312740804,3.76040237,1952.4,1951.4,3.1192927]
[1772312741115,3.76040237,1952.4,1951.5,3.57757065]
[1772312741447,5.04079334,1952.6,1951.6,1.83820629]
[1772312741806,5.04079334,1952.6,1951.6,5.41577694]
[1772312742935,5.04079334,1952.6,1951.7,1.28093456]
[1772312743129,5.04079334,1952.6,1951.8,1.428]
[1772312744110,1.393,1952.7,1951.8,1.428]
[1772312744329,5.04059295,1952.9,1951.8,6.88874481]
[1772312745035,5.04059295,1952.9,1951.9,1.28080331]
[1772312746127,3.55675207,1953.0,1951.9,3.62253852]
[1772312746339,3.55675207,1953.0,1952.1,5.41096773]
[1772312746521,4.83684613,1953.0,1952.2,1.428]
[1772312746724,0.05103566,1953.0,1952.6,1.83820629]
[1772312746909,1.27984745,1953.4,1952.6,1.83820629]
[1772312746910,1.27982283,1953.4,1952.6,1.83820629]
[1772312747235,3.84249735,1953.4,1952.6,4.54650073]
[1772312747435,3.84249735,1953.3,1952.6,1.428]
[1772312747624,3.84249735,1953.3,1952.6,2.70832904]
[1772312748431,0.002,1953.0,1952.6,2.70832904]
[1772312748616,0.002,1953.0,1952.6,1.428]
[1772312748942,0.002,1953.0,1952.6,2.70834117]
[1772312750436,0.002,1953.0,1952.6,6.28110261]
[1772312750624,3.84249735,1953.7,1952.8,5.41096773]
[1772312750837,2.67252414,1953.9,1952.9,3.57276144]
[1772312751022,1.393,1953.9,1953.0,1.43]
[1772312751220,2.67249474,1953.9,1953.0,1.43]
[1772312751447,1.27949474,1953.9,1953.1,1.28001638]
[1772312751746,5.12196714,1954.0,1953.1,1.28001638]
[1772312752647,3.84249735,1954.0,1953.1,1.28001638]
[1772312752856,1.28140235,1954.1,1953.2,3.57276144]
[1772312753318,0.002,1954.1,1953.2,3.57276144]
[1772312753520,0.002,1954.1,1953.6,5.41096773]
[1772312753721,0.002,1954.1,1953.6,1.428]
[1772312754050,0.002,1954.1,1953.6,3.26620629]
[1772312754419,4.18614006,1954.7,1953.8,1.83820629]
[1772312754618,4.18614006,1954.7,1953.7,3.57276144]
[1772312754619,3.84249735,1954.7,1954.1,1.83820629]
[1772312754859,3.84249735,1955.0,1954.1,1.83820629]
[1772312755558,3.84249735,1955.0,1954.2,1.27929587]
[1772312756002,3.84249735,1955.0,1954.3,1.83820629]
[1772312756293,1.27868645,1955.2,1954.3,1.83820629]
[1772312756589,5.12111591,1955.3,1954.3,1.83820629]
[1772312756791,5.12108084,1955.3,1954.2,1.27929587]
[1772312756983,5.12108084,1955.3,1954.3,1.83820629]
[1772312757364,5.12108084,1955.3,1954.5,1.27909951]
[1772312758974,3.84249735,1955.3,1954.5,3.1173058]
[1772312759197,3.84249735,1955.2,1954.4,2.70615578]
[1772312759606,1.27870697,1955.1,1954.4,2.70615578]
[1772312760401,3.84249735,1955.2,1954.4,2.70615578]
[1772312760789,5.1211396,1955.2,1954.4,2.70615578]
[1772312760980,3.84249735,1955.1,1953.7,3.57276144]
[1772312761184,3.84249735,1955.0,1953.9,1.426]
[1772312761384,3.84249735,1954.8,1953.9,1.426]
[1772312761595,3.84249735,1954.6,1953.9,1.426]
[1772312763000,3.84249735,1954.6,1953.5,6.54389924]
[1772312764194,1.27909951,1954.5,1953.7,1.83820629]
[1772312764394,5.12153752,1954.6,1953.9,1.83820629]
[1772312764595,3.84249735,1954.9,1953.7,3.57276144]
[1772312764800,3.84249735,1954.9,1953.9,5.41096773]
[1772312765006,3.84249735,1954.9,1954.0,1.425]
[1772312765382,1.28071675,1955.1,1954.3,1.83820629]
[1772312766214,1.28071675,1955.1,1954.4,1.27916496]
[1772312766215,0.002,1955.1,1954.4,1.27916496]
[1772312766388,0.002,1955.1,1954.3,1.27918716]
[1772312766589,3.84449735,1955.1,1954.2,1.27925127]
[1772312767481,3.84449735,1955.1,1954.4,1.83820629]
[1772312767482,0.002,1955.1,1954.4,1.83820629]
[1772312768091,0.002,1955.1,1954.5,1.424]
[1772312768292,0.002,1955.1,1954.6,1.27903407]
[1772312768689,0.002,1955.1,1954.5,2.70304734]
[1772312770209,0.002,1955.1,1954.5,6.27580878]
[1772312772182,0.002,1955.4,1954.9,5.41096773]
[1772312772484,0.002,1955.4,1955.0,2.70472416]
[1772312773704,0.002,1955.4,1955.0,2.70477132]
[1772312774578,0.002,1955.4,1955.0,1.426]
[1772312774808,0.002,1955.4,1955.0,2.70476465]
[1772312775683,0.002,1955.4,1955.0,1.426]
[1772312775889,3.84449735,1955.4,1955.0,1.426]
[1772312776091,3.84449735,1955.4,1954.5,1.27905182]
[1772312776382,3.84449735,1955.4,1954.7,1.27896863]
[1772312776583,5.12306005,1955.4,1954.7,1.27896863]
[1772312776823,0.002,1955.3,1954.8,3.43543941]
[1772312778210,0.002,1955.5,1955.0,5.2736457]
[1772312778413,0.002,1955.5,1955.1,1.428]
[1772312778604,0.002,1955.5,1955.2,1.27864157]
[1772312779097,0.002,1955.5,1955.2,4.71408098]
[1772312779983,0.002,1955.5,1955.3,1.431]
[1772312780912,0.002,1955.5,1955.4,1.27851079]
[1772312781110,0.002,1955.7,1955.4,1.27851079]
[1772312782424,0.002,1955.7,1955.4,4.7139502]
[1772312782716,0.002,1955.7,1955.5,3.43543941]
[1772312782889,0.002,1955.7,1955.6,2.71238003]
[1772312783089,4.90399773,1956.4,1955.6,2.71238003]
[1772312783785,5.11125989,1956.5,1955.6,2.71238003]
[1772312783786,3.62609059,1956.7,1955.7,3.43543941]
[1772312783983,3.62609059,1956.6,1955.7,3.43543941]
[1772312784991,3.62609059,1956.6,1955.8,1.2782493]
[1772312785190,3.62609059,1956.5,1955.9,1.434]
[1772312786200,4.90368666,1956.8,1955.9,4.86943941]
[1772312786812,3.62609059,1956.7,1955.5,1.27840535]
[1772312787096,3.62609059,1956.5,1955.6,2.71233787]
[1772312788135,3.62609059,1956.5,1955.6,4.55054416]
[1772312788799,3.62609059,1956.5,1955.6,7.98598357]
[1772312788996,3.62609059,1956.5,1955.7,3.43543941]
[1772312789201,3.62609059,1956.5,1955.8,1.2782493]
[1772312789416,4.90388724,1956.5,1955.8,1.2782493]
[1772312790115,0.002,1956.4,1955.8,1.2782493]
[1772312791035,0.002,1956.4,1955.7,4.71370219]
[1772312792235,0.002,1956.4,1955.8,3.43543941]
[1772312792533,0.002,1956.4,1955.7,1.27826278]
[1772312792723,0.002,1956.4,1955.7,4.71370219]
[1772312792924,0.002,1956.4,1955.8,1.335]
[1772312794428,0.002,1956.4,1955.9,1.27818395]
[1772312794810,0.002,1956.4,1955.9,4.71362336]
[1772312795214,1.27979804,1956.5,1956.0,3.43543941]
[1772312795431,0.002,1956.7,1956.2,3.43543941]
[1772312795604,0.002,1956.7,1955.9,4.71362336]
[1772312795809,3.62609059,1956.6,1956.0,1.436]
[1772312796037,3.62609059,1956.6,1955.6,4.87143941]
[1772312796732,3.62609059,1956.4,1955.6,6.14981086]
[1772312796923,1.27779197,1956.5,1955.8,3.43543941]
[1772312798131,4.90580391,1956.7,1955.8,3.43543941]
[1772312798528,0.002,1956.7,1956.0,3.43543941]
[1772312798742,0.002,1956.7,1956.1,1.436]
[1772312799047,0.002,1956.7,1956.1,4.87143941]
[1772312800718,0.002,1956.7,1956.2,1.27798793]
[1772312801625,0.002,1956.7,1956.2,4.71342734]
[1772312802111,0.002,1956.7,1956.2,3.43543941]